bitfinex-derivatives/quotes_BTCF0:USTF0_20250929
["timestamp","ask_amount","ask_price","bid_price","bid_amount"]
[1759132776661,0.78211985,111910.0,111900.0,0.34806765]
[1759132778362,0.78211985,111910.0,111900.0,0.0893707]
[1759132778363,0.78224635,111910.0,111900.0,0.0893707]
[1759132778564,0.80393638,111910.0,111900.0,0.0893707]
[1759132779463,0.40393638,111910.0,111900.0,0.0893707]
[1759132782173,0.14511293,111910.0,111900.0,0.0893707]
[1759132782358,0.40393638,111910.0,111900.0,0.0893707]
[1759132783669,0.05579003,111910.0,111900.0,0.0893707]
[1759132783862,0.05579003,111910.0,111900.0,1.10899415]
[1759132784063,0.05579003,111910.0,111900.0,1.3678176]
[1759132784263,0.03455003,111910.0,111900.0,1.3678176]
[1759132784769,0.03455003,111910.0,111900.0,1.10899415]
[1759132784963,0.03455003,111910.0,111900.0,1.3678176]
[1759132785869,0.03455003,111910.0,111900.0,1.10899415]
[1759132789370,0.03455003,111910.0,111900.0,1.91991415]
[1759132789868,0.02055459,111920.0,111910.0,0.0893227]
[1759132790068,0.02055459,111920.0,111910.0,0.70894615]
[1759132790968,0.02355459,111920.0,111910.0,0.70894615]
[1759132791168,0.003,111920.0,111910.0,0.70894615]
[1759132791462,0.55816771,111930.0,111920.0,0.0893147]
[1759132791664,0.53494771,111930.0,111920.0,1.52896076]
[1759132791866,0.55816771,111930.0,111920.0,0.70893815]
[1759132792068,0.55816771,111930.0,111920.0,1.51981815]
[1759132792859,0.55816771,111930.0,111920.0,1.51977815]
[1759132793471,0.56916771,111930.0,111920.0,1.91977815]
[1759132793669,0.56916771,111930.0,111920.0,1.92886345]
[1759132793873,0.56916771,111930.0,111920.0,1.91977815]
[1759132794066,0.56416771,111930.0,111920.0,1.91977815]
[1759132794266,0.56416771,111930.0,111920.0,1.10893815]
[1759132794468,0.56416771,111930.0,111920.0,1.91977815]
[1759132794669,0.56416771,111930.0,111920.0,1.10893815]
[1759132794867,0.65347441,111930.0,111920.0,1.91977815]
[1759132795268,0.20507441,111930.0,111920.0,1.91977815]
[1759132796772,0.20507441,111930.0,111920.0,1.10893815]
[1759132796974,0.20507441,111930.0,111920.0,1.91973815]
[1759132797173,0.20507441,111930.0,111920.0,0.8501147]
[1759132797373,0.20507441,111930.0,111920.0,1.91973815]
[1759132800376,0.20507441,111930.0,111920.0,0.8501147]
[1759132800774,0.20507441,111930.0,111920.0,1.6608747]
[1759132801171,0.20507441,111930.0,111920.0,0.8501147]
[1759132801376,0.20507441,111930.0,111920.0,1.6608347]
[1759132801377,0.1319367,111930.0,111920.0,1.6608347]
[1759132801676,0.04263,111930.0,111920.0,1.6608347]
[1759132801869,0.04263,111930.0,111920.0,0.8501147]
[1759132802174,0.04263,111930.0,111920.0,1.6608347]
[1759132802570,0.01941,111930.0,111920.0,1.6608347]
[1759132804570,0.006,111930.0,111920.0,1.6608347]
[1759132805575,0.006,111930.0,111920.0,1.6607947]
[1759132805773,0.006,111930.0,111920.0,0.8501147]
[1759132805974,0.03635,111940.0,111930.0,0.0893067]
[1759132806174,0.03635,111940.0,111930.0,0.4501067]
[1759132806477,0.01313,111940.0,111930.0,0.4501067]
[1759132806780,0.03635,111940.0,111930.0,0.4501067]
[1759132807277,0.01313,111940.0,111930.0,0.4501067]
[1759132807580,0.01313,111940.0,111930.0,0.8501067]
[1759132808071,0.01313,111940.0,111930.0,0.8531067]
[1759132809577,0.01313,111940.0,111930.0,0.8561067]
[1759132810870,0.01382,111950.0,111940.0,0.0892987]
[1759132811077,0.01382,111950.0,111940.0,0.4500987]
[1759132811676,0.03704,111960.0,111950.0,0.0892907]
[1759132811877,0.03704,111960.0,111950.0,1.2606907]
[1759132812381,0.1263228,111960.0,111950.0,0.4500907]
[1759132812583,0.1263228,111960.0,111950.0,1.2606907]
[1759132812779,0.1263228,111960.0,111950.0,0.4500907]
[1759132812979,0.03904,111960.0,111950.0,1.2606507]
[1759132813382,0.1283228,111960.0,111950.0,1.2606507]
[1759132813574,0.1263228,111960.0,111950.0,1.2606507]
[1759132813974,0.03704,111960.0,111950.0,1.2606507]
[1759132814175,0.1263228,111960.0,111950.0,0.4500907]
[1759132814580,0.1333228,111960.0,111950.0,1.17132]
[1759132814774,0.1333228,111960.0,111950.0,1.2606108]
[1759132816784,0.1333228,111960.0,111950.0,0.4500908]
[1759132816984,0.1333228,111960.0,111950.0,1.2605708]
[1759132817284,0.1327228,111960.0,111950.0,1.2605708]
[1759132818885,0.1544274,111960.0,111950.0,1.2605708]
[1759132819086,0.1544274,111960.0,111950.0,0.4500908]
[1759132819381,0.0651446,111960.0,111950.0,1.2605708]
[1759132821285,0.0425246,111960.0,111950.0,1.2605708]
[1759132823084,0.0425246,111960.0,111950.0,1.27890291]
[1759132823286,0.0638546,111960.0,111950.0,1.2628908]
[1759132823885,0.0638546,111960.0,111950.0,1.2630508]
[1759132824483,0.04215,111960.0,111950.0,1.2630508]
[1759132824879,0.04253168,111960.0,111950.0,1.2630508]
[1759132825680,0.15314448,111960.0,111950.0,0.4500908]
[1759132825889,0.15314448,111960.0,111950.0,1.2632107]
[1759132826077,0.15314448,111960.0,111950.0,0.4500907]
[1759132826278,0.15314448,111960.0,111950.0,1.2631707]
[1759132826779,0.04253168,111960.0,111950.0,1.2631707]
[1759132829084,0.04254,111960.0,111950.0,1.2631707]
[1759132830484,0.02872,111960.0,111950.0,1.2631707]
[1759132830672,0.007,111960.0,111950.0,1.2631707]
[1759132831281,0.04154,111960.0,111950.0,0.4500907]
[1759132831476,0.0632682,111960.0,111950.0,1.2631307]
[1759132831784,0.0632682,111960.0,111950.0,0.4500907]
[1759132831976,0.0632682,111960.0,111950.0,1.2632907]
[1759132832172,0.0632682,111960.0,111950.0,0.4500907]
[1759132832379,0.0632682,111960.0,111950.0,1.2632907]
[1759132833688,0.0632682,111960.0,111950.0,1.2632507]
[1759132834089,0.0632682,111960.0,111950.0,0.4500907]
[1759132834283,0.152551,111960.0,111950.0,0.4500907]
[1759132834479,0.0632682,111960.0,111950.0,0.9026507]
[1759132834683,0.0632682,111960.0,111950.0,1.2634507]
[1759132834880,0.0287282,111960.0,111950.0,1.2634507]
[1759132835080,0.0287282,111960.0,111950.0,1.6634507]
[1759132837287,0.09286,111970.0,111960.0,0.0892828]
[1759132837482,0.09286,111970.0,111960.0,0.4500828]
[1759132837687,0.11419,111970.0,111960.0,1.2653228]
[1759132837892,0.11419,111970.0,111960.0,0.4500828]
[1759132838090,0.2034648,111970.0,111960.0,0.4500828]
[1759132838391,0.2034648,111970.0,111960.0,1.2652428]
[1759132838593,0.2034648,111970.0,111960.0,1.2652028]
[1759132838793,0.2164648,111970.0,111960.0,1.2652028]
[1759132838986,0.2164648,111970.0,111960.0,1.2651628]
[1759132839181,0.2064648,111970.0,111960.0,1.2651628]
[1759132840895,0.2064648,111970.0,111960.0,0.4500828]
[1759132841094,0.2064648,111970.0,111960.0,1.2651628]
[1759132843688,0.2064648,111970.0,111960.0,0.4500828]
[1759132843889,0.11719,111970.0,111960.0,1.2654428]
[1759132844498,0.2064648,111970.0,111960.0,1.2654428]
[1759132844798,0.11719,111970.0,111960.0,1.2654428]
[1759132846285,0.2064648,111970.0,111960.0,1.2654428]
[1759132847001,0.2064648,111970.0,111960.0,0.3608]
[1759132847393,0.2064648,111970.0,111960.0,1.17568]
[1759132849105,0.2064648,111970.0,111960.0,1.2649628]
[1759132849399,0.22810724,111970.0,111960.0,1.2649628]
[1759132849588,0.22810724,111970.0,111960.0,0.3608]
[1759132849792,0.1240128,111960.0,111950.0,0.3608]
[1759132849987,0.1240128,111960.0,111950.0,1.1756]
[1759132850191,0.14565737,111960.0,111950.0,1.2648907]
[1759132850995,0.05637457,111960.0,111950.0,1.2648907]
[1759132852402,0.03502457,111960.0,111950.0,1.2648907]
[1759132852592,0.01338,111960.0,111950.0,1.2648907]
[1759132852789,0.01338,111960.0,111950.0,1.2698907]
[1759132853199,0.01338,111960.0,111950.0,1.2748907]
[1759132855295,0.01338,111960.0,111950.0,1.6748907]
[1759132855597,0.07965,111970.0,111960.0,0.10722125]
[1759132855795,0.07965,111970.0,111960.0,0.51393759]
[1759132855988,0.07965,111970.0,111960.0,0.91393759]
[1759132856599,0.09303,111970.0,111960.0,0.51393759]
[1759132856904,0.11438,111970.0,111960.0,0.4550828]
[1759132857100,0.11438,111970.0,111960.0,1.2726428]
[1759132857297,0.09303,111970.0,111960.0,1.6726428]
[1759132859103,0.07965,111970.0,111960.0,1.6726428]
[1759132860503,0.07965,111970.0,111960.0,0.8570828]
[1759132860704,0.07965,111970.0,111960.0,1.6724028]
[1759132861906,0.07965,111970.0,111960.0,0.8570828]
[1759132862107,0.07965,111970.0,111960.0,1.6723228]
[1759132862302,0.09303,111970.0,111960.0,0.8570828]
[1759132862903,0.09303,111970.0,111960.0,1.6721228]
[1759132863802,0.09303,111970.0,111960.0,1.6720428]
[1759132864499,0.09303,111970.0,111960.0,0.8570828]
[1759132864709,0.11438,111970.0,111960.0,0.4570828]
[1759132864900,0.09303,111970.0,111960.0,1.2720028]
[1759132866908,0.09303,111970.0,111960.0,0.4570828]
[1759132867110,0.09303,111970.0,111960.0,1.2722828]
[1759132867406,0.11438,111970.0,111960.0,0.4570828]
[1759132867607,0.11438,111970.0,111960.0,1.2724828]
[1759132870303,0.6036548,111970.0,111960.0,0.3678]
[1759132870807,0.6036548,111970.0,111960.0,1.18384]
[1759132871512,0.6036548,111970.0,111960.0,1.2731228]
[1759132871707,0.6036548,111970.0,111960.0,1.2734428]
[1759132873217,0.9644548,111970.0,111960.0,0.007]
[1759132873510,0.98606028,111970.0,111960.0,0.82328]
[1759132874213,0.62526028,111970.0,111960.0,0.9125628]
[1759132874716,0.62526028,111970.0,111960.0,0.82328]
[1759132875214,0.62526028,111970.0,111960.0,0.9125628]
[1759132875415,0.6036548,111970.0,111960.0,1.2733628]
[1759132877513,0.11438,111970.0,111960.0,1.2733628]
[1759132878720,0.2036548,111970.0,111960.0,1.2733628]
[1759132879821,0.11438,111970.0,111960.0,1.2733628]
[1759132881826,0.09303,111970.0,111960.0,1.2733628]
[1759132886827,0.07965,111970.0,111960.0,1.6733628]
[1759132887028,0.07965,111970.0,111960.0,0.8570828]
[1759132887224,0.04465,111970.0,111960.0,1.73729759]
[1759132887421,0.01382,111980.0,111970.0,0.0892748]
[1759132887621,0.01382,111980.0,111970.0,1.2663948]
[1759132888533,0.01382,111980.0,111970.0,1.2713948]
[1759132888732,0.01382,111980.0,111970.0,1.2712748]
[1759132889640,0.01382,111980.0,111970.0,1.2662748]
[1759132891342,0.01382,111980.0,111970.0,0.45914983]
[1759132891844,0.01382,111980.0,111970.0,1.27502983]
[1759132892340,0.01382,111980.0,111970.0,0.85914983]
[1759132892540,0.00647,111980.0,111970.0,1.73884462]
[1759132892742,0.00647,111980.0,111970.0,1.73880462]
[1759132893534,0.00647,111980.0,111970.0,0.92300462]
[1759132893735,0.00647,111980.0,111970.0,1.73896462]
[1759132893938,0.00647,111980.0,111970.0,0.92300462]
[1759132894141,0.00647,111980.0,111970.0,3.56867192]
[1759132894944,0.00647,111980.0,111970.0,3.56863192]
[1759132895243,0.01338,112000.0,111990.0,0.0892589]
[1759132895544,0.01338,112000.0,111990.0,1.64505345]
[1759132895742,0.01338,112000.0,111990.0,2.04505345]
[1759132896042,0.01338,112000.0,111990.0,2.04501345]
[1759132896447,0.01338,112000.0,111990.0,1.22901345]
[1759132896741,0.01638,112000.0,111990.0,1.22901345]
[1759132896931,0.01638,112000.0,111990.0,0.8108589]
[1759132897137,0.1286209,112000.0,111990.0,0.7216]
[1759132897346,0.1286209,112000.0,111990.0,1.53768]
[1759132897535,0.1386209,112000.0,111990.0,0.7216]
[1759132897936,0.1386209,112000.0,111990.0,1.6269389]
[1759132898341,0.1256209,112000.0,111990.0,1.6269389]
[1759132898537,0.1326209,112000.0,111990.0,1.6269389]
[1759132898742,0.04337,112000.0,111990.0,1.6269389]
[1759132899338,0.02038,112000.0,111990.0,1.6269389]
[1759132900951,0.02038,112000.0,111990.0,1.6273789]
[1759132902042,0.02038,112000.0,111990.0,2.0273789]
[1759132902240,0.02038,112000.0,111990.0,2.0274989]
[1759132902741,0.02038,112000.0,111990.0,2.0274589]
[1759132903148,0.02038,112000.0,111990.0,1.2108589]
[1759132903348,0.02038,112000.0,111990.0,2.0273789]
[1759132903745,0.02038,112000.0,111990.0,1.2108589]
[1759132903946,0.02038,112000.0,111990.0,1.6273789]
[1759132904449,0.02038,112000.0,111990.0,1.64531679]
[1759132904644,0.02038,112000.0,111990.0,0.82879679]
[1759132904848,0.02038,112000.0,111990.0,1.64523679]
[1759132905249,0.02038,112000.0,111990.0,1.64547502]
[1759132907150,0.02038,112000.0,111990.0,0.82903502]
[1759132907351,0.02038,112000.0,111990.0,1.64679502]
[1759132907851,0.02038,112000.0,111990.0,1.64689469]
[1759132908847,0.02038,112000.0,111990.0,1.64640719]
[1759132909246,0.02038,112000.0,111990.0,2.04640719]
[1759132910353,0.01389,112010.0,112000.0,0.0892509]
[1759132910653,0.01389,112010.0,112000.0,0.4500509]
[1759132912644,0.01489,112010.0,112000.0,0.4500509]
[1759132912956,0.01489,112010.0,112000.0,0.4660509]
[1759132913157,0.01489,112010.0,112000.0,0.8660509]
[1759132913350,0.01389,112010.0,112000.0,0.8610509]
[1759132914350,0.01389,112020.0,112010.0,0.0892429]
[1759132914548,0.01389,112020.0,112010.0,1.2677629]
[1759132915252,0.01389,112020.0,112010.0,0.4500429]
[1759132915556,0.01389,112020.0,112010.0,0.4720429]
[1759132915757,0.03515,112020.0,112010.0,1.2896029]
[1759132915953,0.03515,112020.0,112010.0,1.2762029]
[1759132917059,0.03515,112020.0,112010.0,0.4580429]
[1759132917456,0.03515,112020.0,112010.0,1.2761629]
[1759132917767,0.03515,112020.0,112010.0,0.4580429]
[1759132917957,0.03515,112020.0,112010.0,1.2760829]
[1759132918457,0.03515,112020.0,112010.0,0.4580429]
[1759132918757,0.524385,112020.0,112010.0,0.3688]
[1759132918961,0.524385,112020.0,112010.0,1.2759629]
[1759132920763,0.54597451,112020.0,112010.0,1.2759629]
[1759132922269,0.54597451,112020.0,112010.0,0.4580429]
[1759132922566,0.54597451,112020.0,112010.0,1.2759629]
[1759132922870,0.54597451,112020.0,112010.0,1.2758429]
[1759132923758,0.45673951,112020.0,112010.0,1.2758429]
[1759132923965,0.43515,112020.0,112010.0,1.2758429]
[1759132924265,0.01389,112020.0,112010.0,1.2758429]
[1759132926760,0.01389,112020.0,112010.0,1.6758429]
[1759132927867,0.01389,112020.0,112010.0,1.6772829]
[1759132928074,0.01389,112020.0,112010.0,1.2772829]
[1759132928867,0.01389,112020.0,112010.0,1.74113769]
[1759132929569,0.01389,112020.0,112010.0,1.6772829]
[1759132935273,0.01389,112020.0,112010.0,1.74113769]
[1759132936171,0.01389,112020.0,112010.0,1.6772829]
[1759132936367,0.01389,112020.0,112010.0,1.74113769]
[1759132938769,0.01389,112020.0,112010.0,2.25739453]
[1759132939874,0.01389,112020.0,112010.0,2.28139453]
[1759132945378,0.01389,112020.0,112010.0,1.46215453]
[1759132945576,0.01389,112020.0,112010.0,2.28103453]
[1759132945974,0.03513,112020.0,112010.0,0.80402611]
[1759132946175,0.03513,112020.0,112010.0,1.62262611]
[1759132946479,0.03513,112020.0,112010.0,1.88075453]
[1759132947076,0.03513,112020.0,112010.0,1.06215453]
[1759132947279,0.03513,112020.0,112010.0,1.88075453]
[1759132947881,0.03513,112020.0,112010.0,1.06215453]
[1759132948077,0.03513,112020.0,112010.0,0.80402611]
[1759132948382,0.524365,112020.0,112010.0,0.74017132]
[1759132948881,0.524365,112020.0,112010.0,0.65092842]
[1759132949082,0.524365,112020.0,112010.0,1.47016842]
[1759132949276,0.524365,112020.0,112010.0,1.47024842]
[1759132949476,0.524365,112020.0,112010.0,0.65092842]
[1759132949676,0.524365,112020.0,112010.0,1.55949132]
[1759132949876,0.43513,112020.0,112010.0,1.55949132]
[1759132950683,0.43513,112020.0,112010.0,0.74017132]
[1759132951079,0.78249342,112020.0,112010.0,1.3011629]
[1759132951277,0.43513,112020.0,112010.0,1.55925132]
[1759132954695,0.78249332,112020.0,112010.0,0.4820429]
[1759132955704,0.5951168,112020.0,112010.0,0.4820429]
[1759132955891,0.5951168,112020.0,112010.0,0.74017132]
[1759132957004,0.5058819,112020.0,112010.0,0.74017132]
[1759132957897,0.03513,112020.0,112010.0,0.74017132]
[1759132958103,0.01389,112020.0,112010.0,0.99829974]
[1759132959396,0.01389,112020.0,112010.0,1.06215453]
[1759132959905,0.01389,112020.0,112010.0,0.99829974]
[1759132960505,0.01389,112020.0,112010.0,1.06215453]
[1759132961698,0.01389,112020.0,112010.0,1.81717974]
[1759132961893,0.03513,112020.0,112010.0,0.99829974]
[1759132962095,0.03513,112020.0,112010.0,1.88099453]
[1759132962295,0.03513,112020.0,112010.0,1.88110297]
[1759132963898,0.03513,112020.0,112010.0,1.81724818]
[1759132967305,0.03513,112020.0,112010.0,1.3008829]
[1759132967506,0.03513,112020.0,112010.0,1.81724818]
[1759132969206,0.01389,112020.0,112010.0,2.07543082]
[1759132969601,0.01389,112020.0,112010.0,2.13928561]
[1759132970308,0.01389,112020.0,112010.0,2.07543082]
[1759132970709,0.01389,112020.0,112010.0,2.13910503]
[1759132971004,0.01389,112020.0,112010.0,2.13874503]
[1759132971205,0.01389,112020.0,112010.0,1.88056239]
[1759132971906,0.01389,112020.0,112010.0,1.06208239]
[1759132972110,0.01389,112020.0,112010.0,2.13858503]
[1759132974808,0.01276,112040.0,112030.0,0.089227]
[1759132975016,0.01276,112040.0,112030.0,1.68245492]
[1759132975614,0.01276,112040.0,112030.0,1.42427228]
[1759132976114,0.01476,112040.0,112030.0,1.42427228]
[1759132976913,0.01476,112040.0,112030.0,1.42431228]
[1759132977209,0.01476,112040.0,112030.0,1.49530192]
[1759132977409,0.01476,112040.0,112030.0,0.67670192]
[1759132977612,0.01476,112040.0,112030.0,1.49522192]
[1759132978608,0.01476,112040.0,112030.0,1.49518192]
[1759132978808,0.01476,112040.0,112030.0,1.49506192]
[1759132979812,0.01476,112040.0,112030.0,0.67670192]
[1759132980013,0.01476,112040.0,112030.0,1.50381251]
[1759132980316,0.01476,112040.0,112030.0,1.50405251]
[1759132981213,0.01476,112040.0,112030.0,0.68545251]
[1759132981512,0.43643,112040.0,112030.0,0.60559228]
[1759132981719,0.43643,112040.0,112030.0,1.42427228]
[1759132982905,0.43643,112040.0,112030.0,0.60559228]
[1759132983113,0.43643,112040.0,112030.0,1.42431228]
[1759132984315,0.43643,112040.0,112030.0,1.44265701]
[1759132984513,0.01476,112040.0,112030.0,1.70083965]
[1759132984706,0.01276,112050.0,112040.0,0.089219]
[1759132984907,0.01276,112050.0,112040.0,0.34740164]
[1759132985615,0.01276,112050.0,112040.0,0.86376692]
[1759132985813,0.01276,112050.0,112040.0,1.26376692]
[1759132986116,0.01876,112050.0,112040.0,1.26376692]
[1759132986317,0.01276,112050.0,112040.0,1.26376692]
[1759132988112,0.01276,112050.0,112040.0,2.08220692]
[1759132988614,0.01276,112050.0,112040.0,1.26376692]
[1759132988815,0.01276,112050.0,112040.0,2.08208692]
[1759132989207,0.01276,112050.0,112040.0,2.08200692]
[1759132990118,0.374,112070.0,112060.0,0.0892031]
[1759132990316,0.374,112070.0,112060.0,1.68199102]
[1759132990919,0.39567,112070.0,112060.0,1.42360838]
[1759132991112,0.374,112070.0,112060.0,1.68179102]
[1759132991316,0.374,112070.0,112060.0,1.75191109]
[1759132991822,0.378,112070.0,112060.0,1.75191109]
[1759132992221,0.378,112070.0,112060.0,0.93387109]
[1759132992520,0.378,112070.0,112060.0,1.75171109]
[1759132992723,0.374,112070.0,112060.0,1.75171109]
[1759132992919,0.374,112070.0,112060.0,0.93387109]
[1759132993119,0.378,112070.0,112060.0,1.75171109]
[1759132994027,0.378,112070.0,112060.0,1.76048951]
[1759132998323,0.378,112070.0,112060.0,1.75984951]
[1759132999219,0.3298,112070.0,112060.0,2.15984951]
[1759132999416,0.0132,112080.0,112070.0,0.0891951]
[1759132999620,0.0132,112080.0,112070.0,0.60556038]
[1759133000325,0.0132,112080.0,112070.0,0.86374302]
[1759133000629,0.0132,112090.0,112080.0,0.0891872]
[1759133000824,0.0132,112090.0,112080.0,1.68089512]
[1759133001421,0.5132,112100.0,112090.0,0.0891792]
[1759133001617,0.6251313,112100.0,112080.0,0.0891845]
[1759133001820,0.03627,112090.0,112080.0,0.34736714]
[1759133002028,0.01351,112090.0,112080.0,0.59404714]
[1759133002228,0.01351,112090.0,112080.0,1.16508714]
[1759133002931,0.01351,112090.0,112080.0,1.42326978]
[1759133003222,0.01351,112090.0,112080.0,1.42426978]
[1759133003729,0.01351,112090.0,112080.0,0.9080645]
[1759133003924,0.01351,112090.0,112080.0,1.42442978]
[1759133004523,0.01351,112090.0,112080.0,0.60654978]
[1759133004729,0.01351,112090.0,112080.0,1.42422978]
[1759133005833,0.01351,112090.0,112080.0,1.68241242]
[1759133009333,0.36,112100.0,112090.0,0.0891795]
[1759133009632,0.01355,112130.0,112100.0,0.0891715]
[1759133009633,0.01351,112110.0,112100.0,0.0891715]
[1759133009835,0.01355,112130.0,112120.0,0.0891556]
[1759133010136,0.01355,112130.0,112120.0,0.86370352]
[1759133010339,0.01355,112130.0,112120.0,0.9366531]
[1759133010630,0.01355,112130.0,112120.0,0.99134518]
[1759133010836,0.03631,112130.0,112120.0,1.7658931]
[1759133011037,0.03631,112130.0,112120.0,0.9366531]
[1759133011334,0.03631,112130.0,112120.0,1.7663331]
[1759133011534,0.03631,112130.0,112120.0,1.50815046]
[1759133011730,0.03631,112130.0,112120.0,0.58931486]
[1759133011923,0.03631,112130.0,112120.0,1.51207026]
[1759133012235,0.01355,112130.0,112120.0,1.7700929]
[1759133012429,0.01355,112130.0,112120.0,1.7699329]
[1759133012831,0.01355,112130.0,112120.0,0.9366529]
[1759133013032,0.01355,112130.0,112120.0,1.7698529]
[1759133013425,0.03631,112130.0,112120.0,0.67847026]
[1759133013630,0.03631,112130.0,112120.0,1.51155026]
[1759133013933,0.01355,112130.0,112120.0,1.7696129]
[1759133014231,0.01355,112130.0,112120.0,1.7786129]
[1759133014427,0.01355,112130.0,112120.0,0.9456529]
[1759133014628,0.01355,112130.0,112120.0,1.7786529]
[1759133014830,0.01355,112130.0,112120.0,1.7746929]
[1759133016136,0.01355,112130.0,112120.0,2.1746929]
[1759133017124,0.01355,112130.0,112120.0,1.3416529]
[1759133017329,0.01355,112130.0,112120.0,2.1744129]
[1759133017732,0.01351,112140.0,112130.0,0.0891474]
[1759133018038,0.01351,112160.0,112150.0,0.0891315]
[1759133018231,0.01351,112160.0,112150.0,1.43841678]
[1759133018625,0.01351,112160.0,112150.0,0.60549678]
[1759133019030,0.01351,112160.0,112150.0,1.43837678]
[1759133019331,0.01351,112170.0,112160.0,0.0891236]
[1759133019629,0.01351,112170.0,112160.0,0.86367152]
[1759133020432,0.03627,112170.0,112160.0,0.67673711]
[1759133021036,0.03627,112170.0,112160.0,1.50909711]
[1759133021640,0.03627,112170.0,112160.0,0.67673711]
[1759133021940,0.01351,112170.0,112160.0,1.76735975]
[1759133023838,0.01351,112170.0,112160.0,1.50917711]
[1759133024140,0.01351,112170.0,112160.0,1.50881711]
[1759133024336,0.01351,112170.0,112160.0,1.24996653]
[1759133024533,0.01351,112170.0,112160.0,1.24988653]
[1759133025942,0.5253856,112170.0,112160.0,0.07124823]
[1759133026241,0.43627,112170.0,112160.0,0.5198436]
[1759133026438,0.43627,112170.0,112160.0,0.7773583]
[1759133027245,0.01351,112150.0,112140.0,0.2752921]
[1759133027443,0.03627,112150.0,112140.0,0.6219388]
[1759133027640,0.03627,112150.0,112140.0,1.2788188]
[1759133028351,0.03627,112150.0,112140.0,1.0436851]
[1759133028547,0.03627,112150.0,112140.0,1.0526851]
[1759133028849,0.03627,112150.0,112140.0,1.2141477]
[1759133031150,0.03627,112150.0,112140.0,1.2135877]
[1759133031443,0.43627,112150.0,112140.0,0.1031395]
[1759133031647,0.5254015,112150.0,112140.0,0.28404]
[1759133032360,0.5254015,112150.0,112140.0,0.3731795]
[1759133032853,0.43627,112150.0,112140.0,0.3731795]
[1759133033352,0.5254015,112150.0,112140.0,0.84448]
[1759133034148,0.8052972,112150.0,112140.0,0.014]
[1759133035250,0.5254015,112150.0,112140.0,0.014]
[1759133036259,0.53454969,112150.0,112140.0,0.014]
[1759133037458,0.55568122,112150.0,112140.0,0.014]
[1759133038758,0.83557692,112150.0,112140.0,0.014]
[1759133038960,0.83557692,112150.0,112120.0,0.08923876]
[1759133038961,0.03578,112130.0,112120.0,0.48313446]
[1759133040357,0.03578,112130.0,112120.0,0.22023876]
[1759133040661,0.03578,112130.0,112120.0,0.50013446]
[1759133041355,0.01345,112130.0,112120.0,0.90013446]
[1759133041561,0.01345,112130.0,112120.0,0.88313446]
[1759133041761,0.01345,112130.0,112120.0,0.88813446]
[1759133044549,0.01345,112130.0,112120.0,0.60823876]
[1759133044855,0.03578,112130.0,112120.0,1.21065446]
[1759133045255,0.03578,112130.0,112120.0,0.37413446]
[1759133045455,0.03578,112130.0,112120.0,1.06617446]
[1759133045852,0.03578,112130.0,112120.0,0.37413446]
[1759133046056,0.03578,112130.0,112120.0,1.11385446]
[1759133047460,0.03578,112130.0,112120.0,0.09424396]
[1759133047659,0.03578,112130.0,112120.0,0.69953966]
[1759133051366,0.03578,112130.0,112120.0,0.37413966]
[1759133051567,0.03578,112130.0,112120.0,1.10165966]
[1759133052055,0.5249274,112130.0,112120.0,0.37413976]
[1759133052259,0.5249274,112130.0,112120.0,1.21045976]
[1759133053063,0.43578,112130.0,112120.0,1.21045976]
[1759133055064,0.5249274,112130.0,112120.0,1.21045976]
[1759133055666,0.5249274,112130.0,112120.0,0.00508866]
[1759133056170,0.54613259,112130.0,112120.0,0.00508866]
[1759133059067,0.54613259,112130.0,112080.0,0.00904178]
[1759133059275,0.54613259,112130.0,112070.0,0.43276031]
[1759133059276,0.01287,112080.0,112070.0,0.15267896]
[1759133059474,0.03539,112080.0,112070.0,1.26805466]
[1759133059767,0.03539,112080.0,112070.0,0.44173421]
[1759133060165,0.01294103,112080.0,112070.0,1.2045261]
[1759133060465,0.01287,112090.0,112080.0,0.01605897]
[1759133060659,0.03539,112090.0,112080.0,0.38514187]
[1759133061068,0.03539,112090.0,112080.0,1.22038187]
[1759133061370,0.03539,112090.0,112080.0,1.2043229]
[1759133061565,0.03543475,112090.0,112080.0,1.2043229]
[1759133061966,0.03543475,112090.0,112080.0,0.3740829]
[1759133062167,0.03543475,112090.0,112080.0,1.1597629]
[1759133062665,0.12461395,112090.0,112080.0,1.1547629]
[1759133062872,0.03543475,112090.0,112080.0,1.2040029]
[1759133063066,0.01291475,112090.0,112080.0,1.6040029]
[1759133063667,0.01291475,112090.0,112080.0,1.66749146]
[1759133063973,0.01287,112100.0,112090.0,0.0891792]
[1759133064168,0.01287,112100.0,112090.0,0.3690749]
[1759133064365,0.01287,112100.0,112090.0,0.7690749]
[1759133065465,0.03539,112100.0,112090.0,1.2043549]
[1759133066378,0.04039,112100.0,112090.0,1.2043549]
[1759133066971,0.03739,112100.0,112090.0,1.2037549]
[1759133068474,0.03739,112100.0,112090.0,1.2038349]
[1759133069675,0.03739,112100.0,112090.0,0.3690749]
[1759133069873,0.03739,112100.0,112090.0,1.2038349]
[1759133070272,0.03739,112100.0,112090.0,0.3690749]
[1759133070670,0.03739,112100.0,112090.0,1.2036749]
[1759133073076,0.1265615,112100.0,112090.0,1.2036749]
[1759133073272,0.1265615,112100.0,112090.0,0.3690749]
[1759133073578,0.5265615,112100.0,112090.0,1.1159549]
[1759133074377,0.43739,112100.0,112090.0,1.1159549]
[1759133074670,0.5265615,112100.0,112090.0,1.1159549]
[1759133074874,0.5265615,112100.0,112090.0,1.2031949]
[1759133075881,0.5265615,112100.0,112090.0,0.3690749]
[1759133076170,0.5265615,112100.0,112090.0,0.9972349]
[1759133077275,0.5265615,112100.0,112090.0,0.3690749]
[1759133079570,0.5265615,112100.0,112090.0,0.2798957]
[1759133079877,0.1245694,112090.0,112080.0,0.8389576]
[1759133080380,0.1245694,112090.0,112080.0,0.3690776]
[1759133080577,0.1245694,112090.0,112080.0,1.0549176]
[1759133080877,0.1245694,112090.0,112080.0,1.2027576]
[1759133081069,0.1245694,112090.0,112080.0,0.3690776]
[1759133081269,0.1245694,112090.0,112080.0,0.9681576]
[1759133081779,0.1245694,112090.0,112080.0,0.3690776]
[1759133081983,0.1245694,112090.0,112080.0,0.9679976]
[1759133082477,0.1245694,112090.0,112080.0,0.9689976]
[1759133086278,0.1245694,112090.0,112080.0,1.01152466]
[1759133086781,0.1245694,112090.0,112080.0,1.24656466]
[1759133087081,0.1245694,112090.0,112080.0,0.41260466]
[1759133087380,0.1245694,112090.0,112080.0,1.11760466]
[1759133089581,0.1245694,112090.0,112080.0,0.41260466]
[1759133089784,0.5245694,112090.0,112080.0,0.41260466]
[1759133090079,0.5245694,112090.0,112080.0,0.001]